[Event "36th German Seniors-ch-65 2024"]
[Site "Bad Wildungen"]
[Date "2024.08.29"]
[Round "7.5"]
[White "Brueggemann, Joachim"]
[Black "Zimmermann, Rolf"]
[Result "1/2-1/2"]
[ECO "B01"]
[WhiteElo "2267"]
[BlackElo "2107"]
[Annotator "RC"]
[PlyCount "92"]
[EventDate "2024.08.22"]
[EventType "swiss"]
[EventCountry "GER"]
[SourceTitle "playchess.com"]
[Source "ChessBase"]
[SourceQuality "1"]
[TimeControl "40/5400+30:1800+30"]

1. e4 {[%emt 0:00:03]} d5 {[%emt 0:00:19]} 2. exd5 {[%emt 0:00:06]} Nf6 {[%emt 0:00:47]} 3. d4 {[%emt 0:00:08]} Nxd5 {[%emt 0:00:29]} 4. c4 {[%emt 0:01:08]} Nf6 {[%emt 0:00:14]} 5. Nc3 {[%emt 0:02:54]} e6 {[%emt 0:05:45]} 6. Nf3 {[%emt 0:00:22]} Be7 {[%emt 0:00:35]} 7. Be2 {[%emt 0:06:42]} O-O {[%emt 0:00:32]} 8. O-O {[%emt 0:01:56]} c6 {[%emt 0:13:34]} 9. Bf4 {[%emt 0:02:29]} b6 {[%emt 0:01:21]} 10. Ne5 {[%emt 0:05:20]} Bb7 {[%emt 0:02:05]} 11. Bf3 {[%emt 0:00:15]} Qc8 {[%emt 0:01:56]} 12. Qe2 {[%emt 0:02:00]} Nbd7 {[%emt 0:09:50]} 13. Rfd1 {[%emt 0:03:18]} Re8 {[%emt 0:05:25]} 14. Rac1 {[%emt 0:13:31]} a6 {[%emt 0:16:53]} 15. Ne4 {[%emt 0:21:47]} Nxe4 {[%emt 0:08:01]} 16. Nxd7 {[%emt 0:00:51]} Qxd7 {[%emt 0:00:49]} 17. Qxe4 {[%emt 0:00:15]} Bd6 {[%emt 0:02:42]} 18. c5 {[%emt 0:05:22]} Bxf4 {[%emt 0:06:53]} 19. Qxf4 {[%emt 0:00:07]} b5 {[%emt 0:00:14]} 20. b4 {[%emt 0:02:26]} Rec8 {[%emt 0:01:50]} 21. h4 {[%emt 0:00:15]} a5 {[%emt 0:00:22]} 22. a3 {[%emt 0:00:05]} a4 {[%emt 0:02:00]} 23. Rc3 {[%emt 0:00:29]} Qe7 {[%emt 0:00:17]} 24. Be4 {[%emt 0:01:02]} Qf6 {[%emt 0:01:24]} 25. Qg3 {[%emt 0:04:04]} g6 {[%emt 0:04:08]} 26. h5 {[%emt 0:01:02]} Rd8 {[%emt 0:01:27]} 27. Rcd3 {[%emt 0:01:58]} Rd7 {[%emt 0:00:27]} 28. hxg6 {[%emt 0:04:27]} hxg6 {[%emt 0:00:17]} 29. f4 {[%emt 0:02:38]} Rad8 {[%emt 0:00:47]} 30. Qe3 {[%emt 0:00:09]} Kg7 {[%emt 0:00:07]} 31. Kf2 {[%emt 0:00:24]} Rh8 {[%emt 0:01:24]} 32. Ke2 {[%emt 0:00:16]} Rh2 {[%emt 0:01:07]} 33. Kd2 {[%emt 0:00:35]} Qh4 {[%emt 0:01:23]} 34. Kc3 {[%emt 0:02:43]} Qh6 {[%emt 0:01:23]} 35. Bf3 {[%emt 0:02:37]} Rh1 {[%emt 0:01:43]} 36. Qe5+ {[%emt 0:03:55]} Kf8 {[%emt 0:00:21]} 37. Qf6 {[%emt 0:04:16]} Rh4 {[%emt 0:02:36]} 38. g3 {[%emt 0:00:48]} Rh2 {[%emt 0:00:06]} 39. R3d2 {[%emt 0:01:26]} Rxd2 {[%emt 0:00:34]} 40. Rxd2 {[%emt 0:03:11]} Qh3 {[%emt 0:01:49]} 41. Qe5 {[%emt 0:04:50]} Qxg3 {[%emt 0:06:09]} 42. Qe3 {[%emt 0:00:10]} Ke7 {[%emt 0:00:55]} 43. Rg2 {[%emt 0:03:53]} Qh4 {[%emt 0:00:39]} 44. Rg5 {[%emt 0:01:12]} Qh2 {[%emt 0:01:28]} 45. Rg2 {[%emt 0:00:58]} Qh3 {[%emt 0:03:15]} 46. Rg1 {[%emt 0:00:19]} Qh2 {[%emt 0:02:28]} 1/2-1/2

[Event "36th German Seniors-ch-65 2024"]
[Site "Bad Wildungen"]
[Date "2024.08.29"]
[Round "7.6"]
[White "Nehmert, Ulrich"]
[Black "Lutz, Albert"]
[Result "1/2-1/2"]
[ECO "D91"]
[WhiteElo "2255"]
[BlackElo "2070"]
[Annotator "RC"]
[PlyCount "29"]
[EventDate "2024.08.22"]
[EventType "swiss"]
[EventCountry "GER"]
[SourceTitle "playchess.com"]
[Source "ChessBase"]
[SourceQuality "1"]
[TimeControl "40/5400+30:1800+30"]

1. d4 {[%emt 0:00:06]} Nf6 {[%emt 0:00:23]} 2. c4 {[%emt 0:00:27]} c6 {[%emt 0:02:18]} 3. Nc3 {[%emt 0:02:56]} d5 {[%emt 0:00:09]} 4. Nf3 {[%emt 0:00:32]} g6 {[%emt 0:00:29]} 5. Bg5 {[%emt 0:06:21]} Bg7 {[%emt 0:01:58]} 6. cxd5 {[%emt 0:01:20]} Nxd5 {[%emt 0:03:13]} 7. e4 {[%emt 0:02:38]} Nxc3 {[%emt 0:00:41]} 8. bxc3 {[%emt 0:00:02]} O-O {[%emt 0:00:39]} 9. Bc4 {[%emt 0:01:25]} c5 {[%emt 0:00:21]} 10. O-O {[%emt 0:07:03]} cxd4 {[%emt 0:02:17]} 11. cxd4 {[%emt 0:01:14]} Nc6 {[%emt 0:00:30]} 12. Rb1 {[%emt 0:02:25]} Nxd4 {[%emt 0:04:16]} 13. Nxd4 {[%emt 0:00:55]} Qxd4 {[%emt 0:00:18]} 14. Bd5 {[%emt 0:18:38]} e6 {[%emt 0:05:11]} 15. Bxb7 {[%emt 0:01:14]} 1/2-1/2

[Event "36th German Seniors-ch-65 2024"]
[Site "Bad Wildungen"]
[Date "2024.08.29"]
[Round "7.7"]
[White "Kannenberg, Karl-Heinz"]
[Black "Rosen, Bernd"]
[Result "0-1"]
[ECO "A44"]
[WhiteElo "2121"]
[BlackElo "2245"]
[Annotator "RC"]
[PlyCount "130"]
[EventDate "2024.08.22"]
[EventType "swiss"]
[EventCountry "GER"]
[SourceTitle "playchess.com"]
[Source "ChessBase"]
[SourceQuality "1"]
[TimeControl "40/5400+30:1800+30"]

1. d4 {[%emt 0:00:03]} Nf6 {[%emt 0:00:12]} 2. Nf3 {[%emt 0:00:08]} c5 {[%emt 0:00:09]} 3. d5 {[%emt 0:00:29]} d6 {[%emt 0:01:52]} 4. Nc3 {[%emt 0:00:37]} e5 {[%emt 0:00:29]} 5. e4 {[%emt 0:04:19]} Be7 {[%emt 0:00:10]} 6. Bb5+ {[%emt 0:03:01]} Nbd7 {[%emt 0:01:45]} 7. a4 {[%emt 0:00:13]} O-O {[%emt 0:00:27]} 8. O-O {[%emt 0:00:20]} Ne8 {[%emt 0:00:57]} 9. Nd2 {[%emt 0:04:42]} Bg5 {[%emt 0:01:40]} 10. Bd3 {[%emt 0:04:41]} Ndf6 {[%emt 0:06:35]} 11. Nc4 {[%emt 0:01:32]} Bxc1 {[%emt 0:00:10]} 12. Rxc1 {[%emt 0:00:47]} Bd7 {[%emt 0:07:12]} 13. Ra1 {[%emt 0:05:17]} g6 {[%emt 0:15:43]} 14. Be2 {[%emt 0:00:40]} b6 {[%emt 0:04:21]} 15. Qd3 {[%emt 0:05:14]} a6 {[%emt 0:03:42]} 16. a5 {[%emt 0:01:56]} b5 {[%emt 0:01:17]} 17. Nb6 {[%emt 0:00:17]} Ra7 {[%emt 0:01:13]} 18. b3 {[%emt 0:00:50]} Ng7 {[%emt 0:03:09]} 19. Rfe1 {[%emt 0:07:37]} Be8 {[%emt 0:05:53]} 20. Nd1 {[%emt 0:05:04]} Nd7 {[%emt 0:01:00]} 21. Nxd7 {[%emt 0:02:32]} Bxd7 {[%emt 0:00:05]} 22. c3 {[%emt 0:07:21]} f5 {[%emt 0:01:37]} 23. Bf3 {[%emt 0:03:47]} f4 {[%emt 0:01:39]} 24. Nb2 {[%emt 0:19:46]} Qh4 {[%emt 0:03:12]} 25. c4 {[%emt 0:03:09]} g5 {[%emt 0:04:48]} 26. g3 {[%emt 0:01:59]} Qh6 {[%emt 0:00:08]} 27. Qd1 {[%emt 0:04:03]} Qf6 {[%emt 0:12:47]} 28. g4 {[%emt 0:03:12]} Qh6 {[%emt 0:00:22]} 29. Kg2 {[%emt 0:00:33]} Ne8 {[%emt 0:03:12]} 30. h3 {[%emt 0:00:22]} Nf6 {[%emt 0:00:07]} 31. Nd3 {[%emt 0:03:05]} b4 {[%emt 0:04:22]} 32. Nb2 {[%emt 0:00:35]} Qg6 {[%emt 0:00:13]} 33. Na4 {[%emt 0:00:21]} Bxa4 {[%emt 0:00:23]} 34. Rxa4 {[%emt 0:00:16]} Qe8 {[%emt 0:00:19]} 35. Rh1 {[%emt 0:01:51]} Qd8 {[%emt 0:00:29]} 36. Ra2 {[%emt 0:00:32]} Kh8 {[%emt 0:01:44]} 37. Qe2 {[%emt 0:00:35]} Ng8 {[%emt 0:00:24]} 38. Qd1 {[%emt 0:01:49]} Qf6 {[%emt 0:00:37]} 39. Qd3 {[%emt 0:01:12]} Ne7 {[%emt 0:01:10]} 40. Kf1 {[%emt 0:00:33]} Ng6 {[%emt 0:00:26]} 41. Ke2 {[%emt 0:30:18]} Qd8 {[%emt 0:30:37]} 42. Raa1 {[%emt 0:00:11]} Nh4 {[%emt 0:03:16]} 43. Ra2 {[%emt 0:00:47]} Rf6 {[%emt 0:00:15]} 44. Raa1 {[%emt 0:00:16]} Kg7 {[%emt 0:00:31]} 45. Qc2 {[%emt 0:00:59]} Kf8 {[%emt 0:00:24]} 46. Qa2 {[%emt 0:00:09]} Qe8 {[%emt 0:06:57]} 47. Rag1 {[%emt 0:01:42]} h6 {[%emt 0:04:55]} 48. Ra1 {[%emt 0:00:31]} Rh7 {[%emt 0:00:00]} 49. Qd2 {[%emt 0:00:00]} Nxf3 {[%emt 0:00:00]} 50. Kxf3 {[%emt 0:00:00]} h5 {[%emt 0:00:00]} 51. Qe2 {[%emt 0:00:00]} Qd8 {[%emt 0:00:00]} 52. Qf1 {[%emt 0:00:00]} Rfh6 {[%emt 0:00:00]} 53. Qg2 {[%emt 0:00:00]} Qd7 {[%emt 0:00:00]} 54. Rag1 {[%emt 0:00:00]} hxg4+ {[%emt 0:00:00]} 55. hxg4 {[%emt 0:00:00]} Qg7 {[%emt 0:00:00]} 56. Qf1 {[%emt 0:00:00]} Qh8 {[%emt 0:00:00]} 57. Rxh6 {[%emt 0:00:00]} Rxh6 {[%emt 0:00:00]} 58. Ke2 {[%emt 0:00:00]} Rh2 {[%emt 0:00:00]} 59. Kd2 {[%emt 0:09:47]} Qh4 {[%emt 0:07:05]} 60. Ke2 {[%emt 0:00:00]} Qh7 {[%emt 0:00:00]} 61. Kd3 {[%emt 0:00:00]} Rh3+ {[%emt 0:00:00]} 62. f3 {[%emt 0:00:00]} Rh2 {[%emt 0:00:00]} 63. Qd1 {[%emt 0:00:00]} Qh4 {[%emt 0:00:00]} 64. Rf1 {[%emt 0:00:00]} Qh3 {[%emt 0:00:00]} 65. Rg1 {[%emt 0:00:48]} Rf2 {[%emt 0:00:00]} 0-1

[Event "36th German Seniors-ch-65 2024"]
[Site "Bad Wildungen"]
[Date "2024.08.29"]
[Round "7.8"]
[White "Heinig, Wolfram"]
[Black "Kuhn, Gerd"]
[Result "1-0"]
[ECO "D13"]
[WhiteElo "2215"]
[BlackElo "2063"]
[Annotator "RC"]
[PlyCount "53"]
[EventDate "2024.08.22"]
[EventType "swiss"]
[EventCountry "GER"]
[SourceTitle "playchess.com"]
[Source "ChessBase"]
[SourceQuality "1"]
[TimeControl "40/5400+30:1800+30"]

1. Nf3 {[%emt 0:00:04]} d5 {[%emt 0:01:50]} 2. c4 {[%emt 0:00:16]} c6 {[%emt 0:00:40]} 3. cxd5 {[%emt 0:00:27]} cxd5 {[%emt 0:00:10]} 4. d4 {[%emt 0:00:02]} Nc6 {[%emt 0:00:41]} 5. Nc3 {[%emt 0:00:18]} Nf6 {[%emt 0:01:10]} 6. Bf4 {[%emt 0:00:07]} a6 {[%emt 0:01:08]} 7. e3 {[%emt 0:01:23]} Bf5 {[%emt 0:01:29]} 8. Be2 {[%emt 0:11:14]} h6 {[%emt 0:04:09]} 9. O-O {[%emt 0:01:27]} e6 {[%emt 0:00:24]} 10. Qb3 {[%emt 0:05:12]} Ra7 {[%emt 0:02:25]} 11. Rfc1 {[%emt 0:12:09]} Bd6 {[%emt 0:03:04]} 12. Bxd6 {[%emt 0:07:51]} Qxd6 {[%emt 0:00:26]} 13. Na4 {[%emt 0:03:54]} O-O {[%emt 0:00:58]} 14. Nc5 {[%emt 0:04:41]} Rb8 {[%emt 0:13:53]} 15. Qb6 {[%emt 0:06:06]} Qd8 {[%emt 0:04:02]} 16. Qxd8+ {[%emt 0:01:30]} Nxd8 {[%emt 0:00:20]} 17. Ne5 {[%emt 0:00:15]} b5 {[%emt 0:07:12]} 18. g4 {[%emt 0:01:11]} Bh7 {[%emt 0:02:23]} 19. b4 {[%emt 0:00:29]} a5 {[%emt 0:12:28]} 20. a4 {[%emt 0:04:41]} bxa4 {[%emt 0:03:25]} 21. b5 {[%emt 0:00:16]} Kf8 {[%emt 0:04:30]} 22. Rxa4 {[%emt 0:01:45]} Ke8 {[%emt 0:03:09]} 23. Na6 {[%emt 0:01:19]} Rb6 {[%emt 0:03:50]} 24. Rxa5 {[%emt 0:01:29]} Ke7 {[%emt 0:01:38]} 25. Rc7+ {[%emt 0:10:50]} Rxc7 {[%emt 0:00:12]} 26. Nxc7 {[%emt 0:00:01]} Rb7 {[%emt 0:06:04]} 27. Na6 {[%emt 0:25:03]} 1-0

[Event "36th German Seniors-ch-65 2024"]
[Site "Bad Wildungen"]
[Date "2024.08.29"]
[Round "7.9"]
[White "Vatter, Hans-Joachim"]
[Black "Zuehlke, Burkhard"]
[Result "1-0"]
[ECO "B09"]
[WhiteElo "2212"]
[BlackElo "1999"]
[Annotator "RC"]
[PlyCount "125"]
[EventDate "2024.08.22"]
[EventType "swiss"]
[EventCountry "GER"]
[SourceTitle "playchess.com"]
[Source "ChessBase"]
[SourceQuality "1"]
[TimeControl "40/5400+30:1800+30"]

1. e4 {[%emt 0:00:08]} d6 {[%emt 0:00:15]} 2. d4 {[%emt 0:00:14]} Nf6 {[%emt 0:00:10]} 3. Nc3 {[%emt 0:00:14]} g6 {[%emt 0:00:14]} 4. f4 {[%emt 0:00:30]} Bg7 {[%emt 0:00:28]} 5. Nf3 {[%emt 0:00:12]} O-O {[%emt 0:00:25]} 6. e5 {[%emt 0:00:15]} dxe5 {[%emt 0:00:28]} 7. dxe5 {[%emt 0:02:14]} Qxd1+ {[%emt 1:32:00]} 8. Nxd1 {[%emt 1:30:43]} Nd5 {[%emt 0:00:00]} 9. c4 {[%emt 0:00:00]} Nb4 {[%emt 0:00:00]} 10. Ne3 {[%emt 0:00:00]} a5 {[%emt 0:00:00]} 11. a3 {[%emt 0:00:00]} N4a6 {[%emt 0:00:00]} 12. Nd5 {[%emt 0:00:00]} Nc6 {[%emt 0:00:00]} 13. Be3 {[%emt 0:00:00]} f6 {[%emt 0:00:00]} 14. exf6 {[%emt 0:00:00]} Bxf6 {[%emt 0:00:00]} 15. Nxf6+ {[%emt 0:00:00]} exf6 {[%emt 0:00:00]} 16. Bd3 {[%emt 0:00:00]} Re8 {[%emt 0:00:00]} 17. Kf2 {[%emt 0:00:00]} b6 {[%emt 0:00:00]} 18. Rac1 {[%emt 0:00:00]} Nc5 {[%emt 0:00:00]} 19. Bc2 {[%emt 0:00:00]} Bb7 {[%emt 0:00:00]} 20. Rhd1 {[%emt 0:00:00]} Rad8 {[%emt 0:00:00]} 21. Bxc5 {[%emt 0:00:00]} bxc5 {[%emt 0:00:00]} 22. Ba4 {[%emt 0:00:00]} Re6 {[%emt 0:00:00]} 23. Bxc6 {[%emt 0:00:00]} Rxd1 {[%emt 0:00:00]} 24. Rxd1 {[%emt 0:00:00]} Bxc6 {[%emt 0:00:00]} 25. Rd8+ {[%emt 0:00:00]} Kf7 {[%emt 0:00:00]} 26. Rh8 {[%emt 0:00:00]} Kg7 {[%emt 0:00:00]} 27. Rc8 {[%emt 0:00:00]} Re7 {[%emt 0:00:00]} 28. Nd2 {[%emt 0:00:00]} a4 {[%emt 0:00:28]} 29. g3 {[%emt 0:00:00]} Kf7 {[%emt 0:00:12]} 30. Nb1 {[%emt 0:00:00]} Ke6 {[%emt 0:00:30]} 31. Nc3 {[%emt 0:00:00]} Kd7 {[%emt 0:01:16]} 32. Rf8 {[%emt 0:00:00]} Ke6 {[%emt 0:01:21]} 33. Rd8 {[%emt 0:00:00]} Rd7 {[%emt 0:00:54]} 34. Rxd7 {[%emt 0:00:00]} Kxd7 {[%emt 0:00:07]} 35. Ke3 {[%emt 0:00:00]} Ke6 {[%emt 0:02:36]} 36. g4 {[%emt 0:00:00]} h6 {[%emt 0:03:40]} 37. Nd1 {[%emt 0:00:02]} f5 {[%emt 0:01:16]} 38. Nf2 {[%emt 0:02:28]} Kd6 {[%emt 0:00:57]} 39. gxf5 {[%emt 0:00:53]} gxf5 {[%emt 0:00:04]} 40. Nd3 {[%emt 0:00:11]} Be8 {[%emt 0:01:05]} 41. Ne5 {[%emt 0:30:30]} Ke6 {[%emt 0:30:30]} 42. Kd3 {[%emt 0:03:21]} Kd6 {[%emt 0:01:17]} 43. Kc3 {[%emt 0:01:05]} Bh5 {[%emt 0:00:00]} 44. Kc2 {[%emt 0:00:00]} Ke6 {[%emt 0:00:00]} 45. b3 {[%emt 0:00:00]} axb3+ {[%emt 0:00:00]} 46. Kxb3 {[%emt 0:00:00]} Bd1+ {[%emt 0:00:00]} 47. Kc3 {[%emt 0:00:00]} Ba4 {[%emt 0:00:00]} 48. Nd3 {[%emt 0:00:00]} Kd6 {[%emt 0:00:00]} 49. Nb2 {[%emt 0:00:00]} Bc6 {[%emt 0:00:00]} 50. Kb3 {[%emt 0:00:00]} Kd7 {[%emt 0:00:00]} 51. Nd3 {[%emt 0:00:00]} Kd6 {[%emt 0:00:00]} 52. Ne5 {[%emt 0:00:00]} h5 {[%emt 0:00:00]} 53. a4 {[%emt 0:00:00]} Bb7 {[%emt 0:00:00]} 54. a5 {[%emt 0:00:00]} Ba6 {[%emt 0:00:00]} 55. Kc3 {[%emt 0:00:00]} Bb7 {[%emt 0:00:00]} 56. Kd3 {[%emt 0:00:00]} Ke6 {[%emt 0:00:00]} 57. Ke3 {[%emt 0:00:00]} Ke7 {[%emt 0:00:00]} 58. Kf2 {[%emt 0:00:00]} h4 {[%emt 0:00:00]} 59. Ke3 {[%emt 0:00:00]} Kd6 {[%emt 0:00:00]} 60. Ng6 {[%emt 0:00:00]} h3 {[%emt 0:00:00]} 61. Ne5 {[%emt 0:00:00]} Bg2 {[%emt 0:00:00]} 62. a6 {[%emt 0:00:00]} Ke7 {[%emt 0:00:00]} 63. Nf3 {[%emt 0:00:00]} 1-0

[Event "36th German Seniors-ch-65 2024"]
[Site "Bad Wildungen"]
[Date "2024.08.29"]
[Round "7.10"]
[White "Ruether, Rudolf"]
[Black "Koehler, Gerhard"]
[Result "1/2-1/2"]
[ECO "A44"]
[WhiteElo "2065"]
[BlackElo "2210"]
[Annotator "RC"]
[PlyCount "146"]
[EventDate "2024.08.22"]
[EventType "swiss"]
[EventCountry "GER"]
[SourceTitle "playchess.com"]
[Source "ChessBase"]
[SourceQuality "1"]
[TimeControl "40/5400+30:1800+30"]

1. d4 {[%emt 0:00:07]} c5 {[%emt 0:00:48]} 2. d5 {[%emt 0:00:38]} e5 {[%emt 0:00:10]} 3. c4 {[%emt 0:00:24]} d6 {[%emt 0:00:18]} 4. Nc3 {[%emt 0:00:11]} Ne7 {[%emt 0:00:44]} 5. e4 {[%emt 0:06:39]} a6 {[%emt 0:02:53]} 6. Bd3 {[%emt 0:01:28]} Ng6 {[%emt 0:00:29]} 7. Nge2 {[%emt 0:00:25]} Be7 {[%emt 0:00:09]} 8. O-O {[%emt 0:01:59]} O-O {[%emt 0:02:54]} 9. Be3 {[%emt 0:02:16]} Bg5 {[%emt 0:00:23]} 10. Qd2 {[%emt 0:00:12]} h6 {[%emt 0:04:04]} 11. f3 {[%emt 0:07:50]} Nd7 {[%emt 0:04:38]} 12. a3 {[%emt 0:02:54]} Rb8 {[%emt 0:04:07]} 13. b4 {[%emt 0:03:09]} Bxe3+ {[%emt 0:03:17]} 14. Qxe3 {[%emt 0:00:09]} Qc7 {[%emt 0:00:12]} 15. Rac1 {[%emt 0:06:30]} b6 {[%emt 0:01:32]} 16. Rb1 {[%emt 0:03:59]} Nf6 {[%emt 0:23:06]} 17. bxc5 {[%emt 0:05:05]} dxc5 {[%emt 0:05:03]} 18. Rb2 {[%emt 0:05:17]} Bd7 {[%emt 0:01:26]} 19. Bc2 {[%emt 0:06:08]} Ne8 {[%emt 0:01:56]} 20. Rfb1 {[%emt 0:21:31]} Nd6 {[%emt 0:00:47]} 21. Bd3 {[%emt 0:00:11]} Rb7 {[%emt 0:05:47]} 22. a4 {[%emt 0:02:55]} a5 {[%emt 0:02:20]} 23. Kh1 {[%emt 0:01:59]} Rfb8 {[%emt 0:00:29]} 24. Rf1 {[%emt 0:01:10]} Qd8 {[%emt 0:00:29]} 25. Rf2 {[%emt 0:00:49]} Qg5 {[%emt 0:01:04]} 26. Qc1 {[%emt 0:06:34]} Qxc1+ {[%emt 0:01:50]} 27. Nxc1 {[%emt 0:02:38]} Kf8 {[%emt 0:01:39]} 28. Nb3 {[%emt 0:03:02]} Ke7 {[%emt 0:04:02]} 29. Nd2 {[%emt 0:01:11]} h5 {[%emt 0:02:24]} 30. g3 {[%emt 0:02:02]} h4 {[%emt 0:00:34]} 31. Kg2 {[%emt 0:00:52]} Rh8 {[%emt 0:00:28]} 32. Kf1 {[%emt 0:01:26]} Kd8 {[%emt 0:04:10]} 33. Ke2 {[%emt 0:00:27]} Kc7 {[%emt 0:00:13]} 34. Rb1 {[%emt 0:00:12]} Rbb8 {[%emt 0:00:22]} 35. Rg1 {[%emt 0:00:25]} Rh5 {[%emt 0:03:51]} 36. Ke3 {[%emt 0:01:02]} hxg3 {[%emt 0:01:22]} 37. hxg3 {[%emt 0:00:26]} Rbh8 {[%emt 0:00:18]} 38. Rff1 {[%emt 0:02:24]} Rg5 {[%emt 0:04:09]} 39. f4 {[%emt 0:02:15]} Rgh5 {[%emt 0:00:36]} 40. Rf2 {[%emt 0:01:03]} f6 {[%emt 0:15:27]} 41. f5 {[%emt 0:05:00]} Ne7 {[%emt 0:00:56]} 42. g4 Rh1 {[%emt 0:30:04]} 43. Rxh1 {[%emt 0:02:24]} Rxh1 {[%emt 0:00:00]} 44. Rf1 Rxf1 {[%emt 0:01:00]} 45. Bxf1 {[%emt 0:00:43]} Nf7 {[%emt 0:00:30]} 46. Nf3 {[%emt 0:25:29]} Nc8 {[%emt 0:00:30]} 47. Kf2 {[%emt 0:00:30]} Kd6 {[%emt 0:00:00]} 48. Kg3 {[%emt 0:00:00]} Ke7 {[%emt 0:00:00]} 49. Kh4 {[%emt 0:00:00]} Nfd6 {[%emt 0:00:00]} 50. Nd2 {[%emt 0:00:00]} Ne8 {[%emt 0:00:00]} 51. Be2 {[%emt 0:00:00]} Ncd6 {[%emt 0:00:00]} 52. Bd3 {[%emt 0:00:00]} Nc7 {[%emt 0:00:00]} 53. Bf1 {[%emt 0:00:00]} Na6 {[%emt 0:00:00]} 54. Bd3 {[%emt 0:00:00]} Nb4 {[%emt 0:00:00]} 55. Be2 {[%emt 0:00:00]} Nf7 {[%emt 0:00:00]} 56. Nf3 {[%emt 0:00:00]} Nc2 {[%emt 0:00:00]} 57. Bd1 {[%emt 0:00:00]} Nd4 {[%emt 0:05:30]} 58. Ng1 {[%emt 0:00:00]} Nd6 {[%emt 0:00:00]} 59. g5 {[%emt 0:06:00]} Nxc4 {[%emt 0:00:00]} 60. gxf6+ {[%emt 0:00:00]} Kxf6 {[%emt 0:00:00]} 61. Nh3 {[%emt 0:00:00]} Nb2 {[%emt 0:00:00]} 62. Nf2 {[%emt 0:00:00]} c4 {[%emt 0:00:00]} 63. Ng4+ {[%emt 0:00:00]} Ke7 {[%emt 0:00:00]} 64. Nxe5 {[%emt 0:00:00]} Nxd1 {[%emt 0:00:00]} 65. Nxd1 {[%emt 0:00:00]} Bxa4 {[%emt 0:00:00]} 66. Nc3 {[%emt 0:00:00]} Bb3 {[%emt 0:00:00]} 67. Kg5 {[%emt 0:00:00]} b5 {[%emt 0:00:39]} 68. Nxb5 {[%emt 0:00:46]} Nxb5 {[%emt 0:01:06]} 69. Nc6+ {[%emt 0:00:06]} Kd6 {[%emt 0:04:15]} 70. Nxa5 {[%emt 0:00:00]} Ba2 {[%emt 0:00:00]} 71. Nxc4+ {[%emt 0:00:00]} Bxc4 {[%emt 0:00:00]} 72. Kg6 {[%emt 0:00:00]} Bd3 {[%emt 0:00:00]} 73. Kxg7 {[%emt 0:00:55]} Bxe4 {[%emt 0:00:13]} 1/2-1/2

[Event "36th German Seniors-ch-65 2024"]
[Site "Bad Wildungen"]
[Date "2024.08.29"]
[Round "7.11"]
[White "Matthey, Harald"]
[Black "Behrens, Harald"]
[Result "1-0"]
[ECO "C07"]
[WhiteElo "2062"]
[BlackElo "2206"]
[Annotator "RC"]
[PlyCount "65"]
[EventDate "2024.08.22"]
[EventType "swiss"]
[EventCountry "GER"]
[SourceTitle "playchess.com"]
[Source "ChessBase"]
[SourceQuality "1"]
[TimeControl "40/5400+30:1800+30"]

1. e4 {[%emt 0:00:04]} e6 {[%emt 0:00:09]} 2. d4 {[%emt 0:00:10]} d5 {[%emt 0:00:07]} 3. Nd2 {[%emt 0:00:14]} a6 {[%emt 0:00:08]} 4. Ngf3 {[%emt 0:01:00]} c5 {[%emt 0:00:24]} 5. exd5 {[%emt 0:02:41]} exd5 {[%emt 0:01:24]} 6. c3 {[%emt 0:01:56]} Nc6 {[%emt 0:00:47]} 7. Qe2+ {[%emt 0:01:42]} Be6 {[%emt 0:02:32]} 8. dxc5 {[%emt 0:00:29]} Bxc5 {[%emt 0:00:25]} 9. Nb3 {[%emt 0:00:14]} Be7 {[%emt 0:00:17]} 10. g3 {[%emt 0:07:04]} Nf6 {[%emt 0:03:36]} 11. Nfd4 {[%emt 0:10:49]} Bg4 {[%emt 0:03:29]} 12. f3 {[%emt 0:00:07]} Bd7 {[%emt 0:00:17]} 13. Bg2 {[%emt 0:01:18]} O-O {[%emt 0:01:28]} 14. O-O {[%emt 0:00:09]} Re8 {[%emt 0:01:04]} 15. Qc2 {[%emt 0:14:33]} Bd6 {[%emt 0:07:41]} 16. Bd2 {[%emt 0:05:03]} Rc8 {[%emt 0:02:39]} 17. Rae1 {[%emt 0:11:52]} h6 {[%emt 0:08:22]} 18. Rxe8+ {[%emt 0:01:34]} Qxe8 {[%emt 0:02:22]} 19. Re1 {[%emt 0:00:08]} Qd8 {[%emt 0:00:09]} 20. Be3 {[%emt 0:02:36]} Ne5 {[%emt 0:01:53]} 21. Nf5 {[%emt 0:02:09]} Nc4 {[%emt 0:06:34]} 22. Bd4 {[%emt 0:03:54]} Bxf5 {[%emt 0:03:34]} 23. Qxf5 {[%emt 0:00:08]} Nxb2 {[%emt 0:00:09]} 24. Bxf6 {[%emt 0:05:47]} gxf6 {[%emt 0:00:07]} 25. f4 {[%emt 0:00:13]} Kg7 {[%emt 0:14:12]} 26. Bxd5 {[%emt 0:01:39]} Rc7 {[%emt 0:02:00]} 27. Be4 {[%emt 0:02:18]} Qg8 {[%emt 0:00:06]} 28. Kh1 {[%emt 0:11:46]} Na4 {[%emt 0:05:51]} 29. Nd4 {[%emt 0:02:27]} Bc5 {[%emt 0:04:20]} 30. Bc2 {[%emt 0:06:00]} Nxc3 {[%emt 0:04:33]} 31. Qg4+ {[%emt 0:00:31]} Kh8 {[%emt 0:00:29]} 32. Qh4 {[%emt 0:01:55]} Bf8 {[%emt 0:04:27]} 33. Re8 {[%emt 0:00:32]} 1-0

[Event "36th German Seniors-ch-65 2024"]
[Site "Bad Wildungen"]
[Date "2024.08.29"]
[Round "7.12"]
[White "Vasiljev, Jurij"]
[Black "Okrajek, Alexander"]
[Result "0-1"]
[ECO "A70"]
[WhiteElo "1993"]
[BlackElo "2172"]
[Annotator "RC"]
[PlyCount "68"]
[EventDate "2024.08.22"]
[EventType "swiss"]
[EventCountry "GER"]
[SourceTitle "playchess.com"]
[Source "ChessBase"]
[SourceQuality "1"]
[TimeControl "40/5400+30:1800+30"]

1. d4 {[%emt 0:00:05]} Nf6 {[%emt 0:01:16]} 2. c4 {[%emt 0:00:11]} e6 {[%emt 0:00:39]} 3. Nf3 {[%emt 0:00:12]} c5 {[%emt 0:00:09]} 4. d5 {[%emt 0:01:00]} exd5 {[%emt 0:00:13]} 5. cxd5 {[%emt 0:00:10]} d6 {[%emt 0:00:11]} 6. Nc3 {[%emt 0:00:22]} g6 {[%emt 0:00:15]} 7. e4 {[%emt 0:01:35]} Bg7 {[%emt 0:00:08]} 8. Bd3 {[%emt 0:02:34]} O-O {[%emt 0:00:36]} 9. O-O {[%emt 0:01:00]} Bg4 {[%emt 0:01:27]} 10. h3 {[%emt 0:00:40]} Bxf3 {[%emt 0:00:09]} 11. Qxf3 {[%emt 0:00:13]} a6 {[%emt 0:02:49]} 12. a4 {[%emt 0:00:30]} Nbd7 {[%emt 0:02:07]} 13. Bf4 {[%emt 0:01:02]} Qc7 {[%emt 0:02:39]} 14. g4 {[%emt 0:05:02]} Ne5 {[%emt 0:07:53]} 15. Bxe5 {[%emt 0:01:12]} dxe5 {[%emt 0:00:03]} 16. a5 {[%emt 0:03:44]} h5 {[%emt 0:04:05]} 17. Rfc1 {[%emt 0:02:34]} hxg4 {[%emt 0:07:57]} 18. hxg4 {[%emt 0:00:10]} c4 {[%emt 0:10:30]} 19. Nd1 {[%emt 0:03:30]} Qd7 {[%emt 0:09:53]} 20. Be2 {[%emt 0:01:23]} Nh7 {[%emt 0:01:05]} 21. Rxc4 {[%emt 0:01:28]} Bh6 {[%emt 0:01:03]} 22. Ra3 {[%emt 0:05:00]} Bf4 {[%emt 0:01:54]} 23. Ne3 {[%emt 0:03:50]} Ng5 {[%emt 0:01:35]} 24. Qg2 {[%emt 0:00:41]} Kg7 {[%emt 0:01:03]} 25. Rac3 {[%emt 0:03:43]} Rh8 {[%emt 0:00:23]} 26. Nf1 {[%emt 0:01:36]} Rh4 {[%emt 0:02:41]} 27. Rc7 {[%emt 0:01:18]} Qa4 {[%emt 0:01:50]} 28. d6 {[%emt 0:06:50]} Rd8 {[%emt 0:05:58]} 29. Ng3 {[%emt 0:12:49]} Rxd6 {[%emt 0:02:27]} 30. Rxb7 {[%emt 0:06:49]} Qxa5 {[%emt 0:04:07]} 31. Qf1 {[%emt 0:04:18]} Qd8 {[%emt 0:06:47]} 32. Rcc7 {[%emt 0:03:05]} Rf6 {[%emt 0:02:15]} 33. Qd1 {[%emt 0:07:56]} Qh8 {[%emt 0:02:04]} 34. Qb3 {[%emt 0:04:56]} Rh1+ {[%emt 0:19:19]} 0-1